bitfinex/quotes_ETHUSD_20240916
["timestamp","ask_amount","ask_price","bid_price","bid_amount"]
[1726450259034,2.6283,2299.1,2298.4,6.9093319]
[1726450259240,4.34904,2299.4,2297.9,9.17423367]
[1726450259241,2.6283,2299.4,2299.0,4.34969]
[1726450259424,2.6283,2299.4,2298.8,4.34992]
[1726450259916,2.6283,2299.4,2299.0,4.34971]
[1726450260111,2.6283,2299.4,2299.0,5.219673]
[1726450260318,2.6283,2299.4,2298.9,4.34987]
[1726450260493,2.6283,2299.4,2299.0,4.3497]
[1726450260697,2.6283,2299.4,2299.1,0.43497]
[1726450260934,2.6283,2299.4,2299.0,4.34958]
[1726450261141,2.6283,2299.4,2299.0,8.69917]
[1726450261516,2.6283,2299.4,2298.9,3.0]
[1726450261699,6.97728,2299.4,2298.9,5.359693]
[1726450262025,6.97728,2299.4,2298.8,4.34993]
[1726450262398,11.3264,2299.4,2298.8,4.34993]
[1726450262636,6.97728,2299.4,2298.8,4.34993]
[1726450262842,6.97728,2299.4,2299.0,4.34968]
[1726450262843,2.6283,2299.4,2299.0,4.34968]
[1726450263052,2.6283,2299.4,2298.8,8.69987]
[1726450263201,2.6283,2299.4,2298.9,5.06840225]
[1726450263540,2.6283,2299.4,2299.0,4.34968]
[1726450263697,2.6283,2299.4,2299.0,4.34961]
[1726450263898,2.6299,2299.5,2299.0,7.1171]
[1726450264128,2.6299,2299.5,2299.1,4.34937]
[1726450264509,2.6299,2299.5,2299.2,4.34927]
[1726450264749,0.0384667,2299.6,2299.4,4.3488]
[1726450265617,0.07430549,2299.5,2299.4,4.3488]
[1726450266434,0.07430549,2299.5,2299.4,8.69776]
[1726450266635,0.07430549,2299.5,2299.4,11.23976]
[1726450266837,0.07430549,2299.5,2299.4,4.3488]
[1726450267046,0.07430549,2299.5,2299.4,4.8271727]
[1726450268615,0.07430549,2299.5,2299.4,15.0017007]
[1726450269152,0.07430549,2299.5,2299.4,19.3506607]
[1726450270051,0.07430549,2299.5,2299.4,14.9147327]
[1726450270734,0.07430549,2299.5,2299.4,23.6126527]
[1726450270928,0.0384667,2299.6,2299.4,23.6126527]
[1726450270929,0.0384667,2299.6,2299.5,16.04631]
[1726450271159,0.0384667,2299.6,2299.5,28.54286282]
[1726450271977,0.0384667,2299.6,2299.5,24.19409282]
[1726450272369,0.0384667,2299.6,2299.5,22.67378057]
[1726450272572,0.0384667,2299.6,2299.5,27.02255057]
[1726450272894,12.45,2300.2,2299.5,27.02255057]
[1726450272895,7.15115235,2300.2,2300.1,18.69059]
[1726450273046,0.0384667,2300.3,2300.2,7.34744]
[1726450273794,0.0384667,2300.3,2300.2,3.0]
[1726450273945,0.0384667,2300.3,2300.2,7.34744]
[1726450274145,0.0384667,2300.3,2300.2,3.0]
[1726450275184,0.0384667,2300.3,2300.1,4.34753]
[1726450275683,2.5071,2300.2,2299.8,3.0]
[1726450275886,2.5071,2300.2,2299.9,4.34799]
[1726450276069,0.0384667,2300.3,2299.9,4.34799]
[1726450276242,0.0384667,2300.3,2299.9,11.31098]
[1726450276588,0.0384667,2300.3,2300.0,4.3478]
[1726450276970,0.0384667,2300.3,2300.1,4.34762]
[1726450277156,0.0384667,2300.3,2300.1,8.69514]
[1726450277543,0.0384667,2300.3,2300.1,4.34752]
[1726450277848,0.0384667,2300.3,2300.2,7.43438359]
[1726450278275,0.0384667,2300.3,2300.2,14.52891657]
[1726450278488,0.0384667,2300.3,2300.2,16.41658523]
[1726450278700,0.10853243,2300.3,2300.2,16.41658523]
[1726450279009,0.10922437,2300.3,2300.2,16.41658523]
[1726450279208,0.10922437,2300.3,2300.2,11.98220866]
[1726450279380,0.10922437,2300.3,2300.2,16.32964866]
[1726450279582,0.0384667,2300.3,2300.2,16.32964866]
[1726450279933,0.0384667,2300.3,2300.2,20.67708866]
[1726450280475,0.0384667,2301.0,2300.9,8.69224]
[1726450280773,0.0384667,2301.0,2300.9,11.69224]
[1726450281204,0.0384667,2301.0,2300.9,7.34612]
[1726450281784,0.0384667,2301.0,2300.9,3.0]
[1726450282189,0.0384667,2301.0,2300.4,4.25312268]
[1726450282190,6.9809567,2301.0,2300.3,8.17806287]
[1726450282454,6.9809567,2301.0,2300.5,4.34683]
[1726450282722,6.9809567,2301.0,2300.5,4.34688]
[1726450282904,2.6349667,2301.0,2300.5,4.34688]
[1726450283428,0.0384667,2301.0,2300.6,8.68661654]
[1726450283591,0.0384667,2301.0,2300.8,4.34629]
[1726450283917,0.0384667,2301.0,2300.9,4.34612]
[1726450284212,0.0384667,2301.0,2300.8,4.34629]
[1726450284417,0.0384667,2301.0,2300.8,4.34619]
[1726450284723,0.0384667,2301.0,2300.6,4.43344559]
[1726450285018,0.0384667,2301.0,2300.8,4.3463]
[1726450287227,0.0384667,2301.0,2300.8,4.34621]
[1726450287920,0.0384667,2301.0,2300.6,4.34655]
[1726450288075,0.0384667,2301.0,2300.6,4.92544592]
[1726450288527,0.0384667,2301.0,2300.6,9.27204592]
[1726450288823,0.0384667,2301.0,2300.7,4.34645]
[1726450290227,0.0384667,2301.0,2300.8,4.34621]
[1726450291431,0.0384667,2301.0,2300.7,4.34645]
[1726450291983,0.0384667,2301.0,2300.6,0.49198022]
[1726450291984,2.6958,2300.9,2300.6,3.0]
[1726450292339,2.6958,2300.9,2299.7,4.34829]
[1726450292340,2.6567,2300.2,2299.7,4.34829]
[1726450292485,2.6567,2300.2,2299.8,4.34807]
[1726450292681,2.6567,2300.2,2299.9,0.869636]
[1726450293117,7.00425,2300.2,2299.7,4.34828]
[1726450293318,4.34771,2300.1,2299.3,4.34903]
[1726450293521,4.34823,2299.8,2299.3,0.86025727]
[1726450293738,2.6885,2300.0,2299.4,0.08697006]
[1726450293902,2.6885,2300.0,2299.7,4.34835]
[1726450294288,2.6885,2300.0,2299.5,4.34861]
[1726450294484,4.34823,2299.8,2299.1,7.12613]
[1726450294736,4.34823,2299.8,2299.1,4.34939]
[1726450294888,2.6885,2300.0,2299.3,2.7767]
[1726450295089,7.04822,2300.6,2300.0,4.34764]
[1726450295286,7.0482,2300.6,2300.1,0.434764]
[1726450295492,4.34694,2300.5,2299.9,4.348]
[1726450295720,4.41833444,2300.5,2299.9,4.348]
[1726450296113,0.07139444,2300.5,2300.0,4.34781]
[1726450296319,0.07139444,2300.5,2300.0,4.34766]
[1726450296636,0.07139444,2300.5,2300.0,8.69538]
[1726450297326,0.07139444,2300.5,2300.4,4.34707]
[1726450297510,0.07139444,2300.5,2300.4,9.563588]
[1726450297715,0.07139444,2300.5,2300.4,0.869448]
[1726450298024,0.06876703,2300.5,2300.0,4.34767]
[1726450299006,4.41581703,2300.5,2299.8,11.69616]
[1726450299214,2.6093,2300.4,2299.7,3.0]
[1726450299520,2.6093,2300.1,2299.7,3.0]
[1726450299735,2.6093,2300.1,2299.7,7.34828]
[1726450300237,0.06872767,2300.0,2299.8,4.34816]
[1726450300442,0.06872767,2300.0,2299.9,4.34801]
[1726450300921,2.6221,2300.4,2299.9,4.34801]
[1726450301130,0.06864108,2300.0,2299.9,5.517627]
[1726450301333,2.6221,2300.4,2299.9,5.517627]
[1726450301950,2.6221,2300.4,2299.9,1.169617]
[1726450301951,6.96921,2300.4,2299.9,1.169617]
[1726450302105,6.96921,2300.4,2299.8,8.69625]
[1726450302106,0.06864108,2300.3,2299.8,8.69625]
[1726450302307,0.06864108,2300.3,2299.8,4.34809]
[1726450302635,0.06864108,2300.3,2299.9,4.34799]
[1726450302810,0.06864108,2300.3,2299.9,5.517598]
[1726450303850,0.06864108,2300.3,2299.9,1.169608]
[1726450304708,0.06864108,2300.3,2299.9,5.517518]
[1726450305553,4.41591108,2300.3,2299.9,1.169608]
[1726450305709,4.41591108,2300.3,2299.8,4.34809]
[1726450305911,7.06903,2299.9,2299.4,7.34885]
[1726450306153,7.06903,2299.9,2299.2,2.5678]
[1726450306154,2.7209,2299.9,2299.2,6.91702]
[1726450306459,4.34831,2299.8,2299.2,4.34921]
[1726450306608,8.76531108,2299.8,2299.2,4.784131]
[1726450306808,4.34877,2299.6,2299.2,0.434921]
[1726450307019,4.34879,2299.5,2299.2,0.434921]
[1726450307259,2.66764108,2299.4,2299.2,0.434921]
[1726450307459,2.66764108,2299.4,2298.7,4.35027]
[1726450307611,4.41773108,2299.4,2298.8,0.08697913]
[1726450307816,2.599,2299.3,2298.8,0.72188491]
[1726450308035,2.599,2299.3,2298.6,2.7816]
[1726450308036,0.06768045,2299.2,2298.7,4.35025]
[1726450308245,0.06768045,2299.2,2298.8,0.800175]
[1726450308445,2.599,2299.3,2298.8,0.800175]
[1726450308446,2.599,2299.5,2298.9,4.34978]
[1726450308751,0.06768045,2299.4,2298.8,7.35006]
[1726450308958,0.06768045,2299.4,2298.9,1.170023]
[1726450309162,0.06768045,2299.4,2298.9,5.60685431]
[1726450309319,0.06768045,2299.4,2298.9,9.95662431]
[1726450309666,0.06768045,2299.4,2298.9,5.519773]
[1726450309819,0.06768045,2299.4,2299.0,0.8519773]
[1726450310224,4.41664045,2299.4,2299.0,0.8519773]
[1726450310425,4.41664045,2299.4,2298.8,3.0]
[1726450310644,4.34927,2299.3,2298.8,3.0]
[1726450310844,4.41664045,2299.4,2298.7,4.35016]
[1726450310845,4.41683564,2299.2,2298.7,3.0]
[1726450311049,4.41683564,2299.2,2298.7,4.14823]
[1726450311050,2.5579,2299.1,2298.7,4.14823]
[1726450311326,0.06745201,2299.0,2298.7,1.14823]
[1726450311868,4.41729201,2299.0,2298.3,4.35089]
[1726450312418,8.76714201,2299.0,2298.3,4.35089]
[1726450312621,4.41729201,2299.0,2298.4,0.69785567]
[1726450313162,4.41729201,2299.0,2298.4,3.69785567]
[1726450313366,4.41729201,2299.0,2298.4,8.04869567]
[1726450315176,0.06745201,2299.0,2298.5,4.35054]
[1726450315333,0.06745201,2299.0,2298.6,0.50483957]
[1726450316875,4.34994,2298.9,2298.6,0.50483957]
[1726450317077,4.34994,2298.9,2298.4,0.69785567]
[1726450317378,0.06717622,2298.8,2298.5,3.0]
[1726450317583,0.06717622,2298.8,2298.2,4.3896667]
[1726450317584,2.7646,2298.7,2298.2,4.3896667]
[1726450317892,2.7646,2298.7,2298.2,4.65243337]
[1726450317893,0.06717622,2298.6,2298.2,4.65243337]
[1726450318037,0.06717622,2298.6,2298.3,4.351]
[1726450318240,0.06717622,2298.6,2298.4,0.46522334]
[1726450318938,0.06717622,2298.6,2298.2,3.30123337]
[1726450319139,4.41765622,2298.6,2298.2,0.0384667]
[1726450319380,2.7598,2298.4,2298.2,0.0384667]
[1726450319686,4.41763319,2298.3,2298.2,0.0384667]
[1726450319844,9.46610108,2298.3,2298.2,0.0384667]
[1726450320496,5.11506108,2298.3,2298.2,0.0384667]
[1726450321174,8.26146108,2298.3,2298.2,0.0384667]
[1726450321396,12.61250108,2298.3,2298.2,0.0384667]
[1726450322809,15.61250108,2298.3,2298.2,0.0384667]
[1726450323539,4.3519,2297.9,2297.5,0.0384667]
[1726450323661,7.06786,2297.6,2297.5,0.0384667]
[1726450323870,2.7155,2297.6,2297.5,0.0384667]
[1726450324082,2.78079983,2297.6,2297.5,0.0384667]
[1726450324304,7.13315983,2297.6,2297.5,0.0384667]
[1726450325414,7.83058772,2297.6,2297.5,0.0384667]
[1726450326003,7.13315983,2297.6,2297.5,0.0384667]
[1726450327568,11.48551983,2297.6,2297.5,0.0384667]
[1726450327775,12.03551983,2297.6,2297.5,0.0384667]
[1726450328898,16.38787983,2297.6,2297.5,0.0384667]
[1726450329096,12.03551983,2297.6,2297.5,0.0384667]
[1726450329272,19.38787983,2297.6,2297.5,0.0384667]
[1726450329704,15.03551983,2297.6,2297.5,0.0384667]
[1726450330275,19.38787983,2297.6,2297.5,0.0384667]
[1726450330473,15.03551983,2297.6,2297.5,0.0384667]
[1726450331489,12.03551983,2297.6,2297.5,0.0384667]
[1726450331698,16.38787983,2297.6,2297.5,0.0384667]
[1726450332405,19.38787983,2297.6,2297.5,0.0384667]
[1726450332725,19.38787983,2297.6,2296.8,0.0384667]
[1726450332726,11.96878,2296.9,2296.8,0.0384667]
[1726450332895,16.32247,2296.9,2296.8,0.0384667]
[1726450333227,19.38579747,2296.9,2296.8,0.0384667]
[1726450335756,24.62514596,2296.9,2296.8,0.0384667]
[1726450336045,28.97883596,2296.9,2296.8,0.0384667]
[1726450336745,28.97883596,2296.9,2296.1,0.0384667]
[1726450336746,11.88694,2296.2,2296.1,0.0384667]
[1726450337096,11.94981732,2296.2,2296.1,0.0384667]
[1726450345274,0.06287732,2296.2,2296.1,0.0384667]
[1726450345404,8.70955,2296.4,2296.1,0.0384667]
[1726450345606,0.06147111,2296.3,2296.1,0.0384667]
[1726450346762,0.06147111,2296.3,2296.1,4.3935667]
[1726450346921,4.35413,2296.7,2296.2,3.58319567]
[1726450347443,4.35429,2296.6,2296.2,3.58319567]
[1726450347615,4.35429,2296.6,2296.2,2.7083]
[1726450347943,8.70871,2296.6,2296.2,2.7083]
[1726450348142,4.35429,2296.6,2296.2,2.7083]
[1726450348328,13.94739849,2296.8,2296.2,2.7083]
[1726450348533,4.354,2296.8,2296.2,2.7083]
[1726450348754,4.35419,2296.7,2296.3,0.71019567]
[1726450349854,0.53167498,2297.1,2296.4,2.5521]
[1726450350058,4.35398,2296.8,2296.4,2.5521]
[1726450351065,0.55,2296.7,2296.4,2.5521]
[1726450351491,4.3538,2296.9,2296.4,6.90673]
[1726450351673,4.35398,2296.8,2296.4,2.80731]
[1726450352781,8.7076,2296.9,2296.4,2.80731]
[1726450353101,4.3538,2296.9,2296.4,2.80731]
[1726450353324,8.70765,2296.9,2296.4,2.80731]
[1726450353465,4.3538,2296.9,2296.4,2.80731]
[1726450353804,8.7076,2296.9,2296.4,2.80731]
[1726450354016,4.3538,2296.9,2296.4,2.80731]
[1726450354503,0.06054404,2296.8,2296.4,2.80731]
[1726450355008,0.55,2296.7,2296.1,2.6874667]
[1726450355169,4.35482,2296.4,2296.1,2.6874667]
[1726450355371,4.41541194,2296.3,2296.1,0.0384667]
[1726450356086,3.9168759,2296.2,2296.1,0.0384667]
[1726450356288,8.2718959,2296.2,2296.1,0.0384667]
[1726450356497,13.23745994,2296.2,2296.1,0.0384667]
[1726450356696,21.17993709,2296.2,2296.1,0.0384667]
[1726450356872,16.82491709,2296.2,2296.1,0.0384667]
[1726450357074,21.17993709,2296.2,2296.1,0.0384667]
[1726450357424,8.71268,2295.5,2295.4,0.0384667]
[1726450357626,10.28220397,2295.5,2295.4,0.0384667]
[1726450358138,15.10757767,2295.5,2295.4,0.0384667]
[1726450358695,15.10757767,2295.5,2294.8,2.6278]
[1726450358696,4.35674,2295.3,2294.8,2.6278]
[1726450358898,4.35674,2295.3,2294.8,2.6998741]
[1726450359195,0.06014112,2295.2,2294.8,2.6998741]
[1726450359424,4.35674,2295.3,2294.8,2.6998741]
[1726450359597,0.06014112,2295.2,2294.8,2.6998741]
[1726450359810,4.35674,2295.3,2294.8,2.6998741]
[1726450360034,4.8253737,2295.2,2294.8,2.6998741]
[1726450360341,9.7328537,2294.9,2294.8,0.0720741]
[1726450360541,14.0903337,2294.9,2294.8,0.0720741]
[1726450360746,14.14959727,2294.9,2294.8,0.0720741]
[1726450360896,9.79211727,2294.9,2294.8,0.0720741]
[1726450364716,0.05926357,2294.9,2294.8,0.0720741]
[1726450365928,0.05926357,2294.9,2294.8,2.6041741]
[1726450366252,9.1817537,2295.5,2294.9,4.35738]
[1726450366461,0.05357735,2295.4,2295.0,4.35726]
[1726450366633,4.8253737,2295.8,2294.8,0.0720741]
[1726450366634,4.35578,2295.8,2295.3,2.5381]
[1726450366958,0.05357735,2295.7,2295.4,0.689499]
[1726450367111,0.05357735,2295.7,2295.3,2.5678504]
[1726450367314,4.35552,2296.0,2295.3,2.5678504]
[1726450367315,4.35552,2296.0,2295.4,4.35635]
[1726450367546,0.05357735,2295.6,2295.5,4.35634]
[1726450367759,4.8253737,2296.1,2295.5,4.35634]
[1726450368053,4.35541,2296.0,2295.5,0.0297504]
[1726450368259,4.35615,2295.6,2295.5,0.0297504]
[1726450368421,8.7123,2295.6,2295.5,0.0297504]
[1726450368616,8.76587735,2295.6,2295.5,0.0297504]
[1726450369054,9.31587735,2295.6,2295.5,0.0297504]
[1726450371070,4.40972735,2295.6,2295.5,0.0297504]
[1726450371249,8.76587735,2295.6,2295.5,0.0297504]
[1726450372483,17.63855246,2295.6,2295.5,0.0297504]
[1726450373790,13.28240246,2295.6,2295.5,0.0297504]
[1726450374306,17.63855246,2295.6,2295.5,0.0297504]
[1726450374466,13.28240246,2295.6,2295.5,0.0297504]
[1726450377990,17.63855246,2295.6,2295.5,0.0297504]
[1726450378192,13.28240246,2295.6,2295.5,0.0297504]
[1726450378989,17.63855246,2295.6,2295.5,0.0297504]
[1726450379200,20.63855246,2295.6,2295.5,0.0297504]
[1726450380389,24.99470246,2295.6,2295.5,0.0297504]
[1726450380481,24.99470246,2295.6,2294.8,0.0423237]
[1726450380482,9.26496,2294.9,2294.8,0.0423237]
[1726450380691,9.31886995,2294.9,2294.8,0.0423237]
[1726450381466,16.67634995,2294.9,2294.8,0.0423237]
[1726450381663,23.56132995,2294.9,2294.8,0.0423237]
[1726450381909,8.718,2294.1,2294.0,0.0423237]
[1726450382269,9.268,2294.1,2294.0,0.0423237]
[1726450382562,9.32190995,2294.1,2294.0,0.0423237]
[1726450384722,9.32190995,2294.1,2293.3,0.0423237]
[1726450384724,4.36033,2293.4,2293.3,0.0423237]
[1726450384927,14.5320667,2293.4,2293.3,0.0423237]
[1726450385442,14.58597665,2293.4,2293.3,0.0423237]
[1726450385589,21.94630665,2293.4,2293.3,0.0423237]
[1726450385937,17.58597665,2293.4,2293.3,0.0423237]
[1726450386824,17.12093295,2293.4,2293.3,0.0423237]
[1726450387027,21.94630665,2293.4,2293.3,0.0423237]
[1726450388832,17.58597665,2293.4,2293.3,0.0423237]
[1726450389032,21.94630665,2293.4,2293.3,0.0423237]
[1726450389239,17.03597665,2293.4,2293.3,0.0423237]
[1726450389397,8.77456995,2293.4,2293.3,0.0423237]
[1726450389746,4.41423995,2293.4,2293.3,0.0423237]
[1726450390749,0.60390995,2293.4,2293.3,0.0423237]
[1726450391037,0.60390995,2293.4,2293.3,2.7559237]
[1726450391038,0.05390995,2293.4,2293.3,2.7559237]
[1726450391234,4.35979,2293.7,2293.3,2.7559237]
[1726450391447,0.05040644,2293.6,2293.5,2.7136]
[1726450391661,4.3595,2293.9,2293.5,2.7136]
[1726450391812,4.36033,2293.4,2293.3,0.0423237]
[1726450392009,8.72066,2293.4,2293.3,0.0423237]
[1726450392335,8.77106644,2293.4,2293.3,0.0423237]
[1726450392521,24.99480014,2293.4,2293.3,0.0423237]
[1726450392725,29.2296749,2293.4,2293.3,0.0423237]
[1726450393110,24.8693449,2293.4,2293.3,0.0423237]
[1726450393512,20.0439712,2293.4,2293.3,0.0423237]
[1726450393738,24.8693449,2293.4,2293.3,0.0423237]
[1726450394427,13.0059412,2293.4,2293.3,0.0423237]
[1726450394630,4.41073644,2293.4,2293.3,0.0423237]
[1726450395157,0.05040644,2293.4,2293.3,0.0423237]
[1726450395585,4.36033,2293.4,2293.3,0.0423237]
[1726450395744,0.05040644,2293.4,2293.3,0.0423237]
[1726450396344,4.41073644,2293.4,2293.3,0.0423237]
[1726450397163,10.19816708,2293.4,2293.3,0.0423237]
[1726450397482,9.32106644,2293.4,2293.3,0.0423237]
[1726450397683,11.88546644,2293.4,2293.3,0.0423237]
[1726450398359,19.24579644,2293.4,2293.3,0.0423237]
[1726450398790,23.60612644,2293.4,2293.3,0.0423237]
[1726450398974,19.24579644,2293.4,2293.3,0.0423237]
[1726450399189,23.60612644,2293.4,2293.3,0.0423237]
[1726450399710,19.24579644,2293.4,2293.3,0.0423237]
[1726450401405,18.69579644,2293.4,2293.3,0.0423237]
[1726450401715,4.41073644,2293.4,2293.3,0.0423237]
[1726450402013,0.05040644,2293.4,2293.3,0.0423237]
[1726450402707,0.05055712,2293.4,2293.3,0.0423237]
[1726450402966,4.41088712,2293.4,2293.3,0.0423237]
[1726450403486,0.05055712,2293.4,2293.3,0.0423237]
[1726450403812,4.35952,2293.9,2293.3,0.31134607]
[1726450404014,0.05055712,2293.4,2293.3,0.0423237]
[1726450404178,8.71968,2293.7,2293.3,0.0423237]
[1726450404374,0.05055712,2293.4,2293.3,0.0423237]
[1726450404579,8.71968,2293.7,2293.3,0.0423237]
[1726450404787,0.05055712,2293.4,2293.3,0.0423237]
[1726450404988,4.35997,2293.6,2293.3,0.0423237]
[1726450405199,0.05055712,2293.4,2293.3,0.0423237]
[1726450405708,4.35981,2293.7,2293.3,0.0423237]
[1726450405709,8.71968,2293.7,2293.3,0.0423237]
[1726450406014,9.32121712,2293.4,2293.3,0.0423237]
[1726450406231,9.27066,2293.4,2293.3,0.0423237]
[1726450406519,9.32170898,2293.4,2293.3,0.0423237]
[1726450408126,4.96137898,2293.4,2293.3,0.0423237]
[1726450408341,9.32170898,2293.4,2293.3,0.0423237]
[1726450408698,10.25387988,2293.4,2293.3,0.0423237]
[1726450409420,9.70387988,2293.4,2293.3,0.0423237]
[1726450410145,16.73250988,2293.4,2293.3,0.0423237]
[1726450410630,19.73250988,2293.4,2293.3,0.0423237]
[1726450410926,20.28250988,2293.4,2293.3,0.0423237]
[1726450411331,24.64283988,2293.4,2293.3,0.0423237]
[1726450411494,20.28250988,2293.4,2293.3,0.0423237]
[1726450411691,24.64283988,2293.4,2293.3,0.0423237]
[1726450412200,20.28250988,2293.4,2293.3,0.0423237]
[1726450412946,12.70387988,2293.4,2293.3,0.0423237]
[1726450413095,8.77170898,2293.4,2293.3,0.0423237]
[1726450413295,4.41137898,2293.4,2293.3,0.0423237]
[1726450413495,0.05104898,2293.4,2293.3,0.0423237]
[1726450413740,4.36026,2293.5,2293.3,0.0423237]
[1726450413891,0.05048577,2293.4,2293.3,0.0423237]
[1726450414345,4.35962,2293.8,2293.3,2.7963237]
[1726450414499,0.05048577,2293.4,2293.3,3.52074888]
[1726450414705,4.35962,2293.8,2293.3,3.52074888]
[1726450415343,7.15115235,2294.0,2293.3,3.52074888]
[1726450415344,0.05048577,2293.7,2293.4,4.36016]
[1726450415497,0.05048577,2293.7,2293.5,3.15721171]
[1726450415829,0.05048577,2293.6,2293.5,2.6358]
[1726450416037,7.15115235,2294.0,2293.5,6.99594]
[1726450416254,4.35912,2294.1,2293.6,0.699609]
[1726450416603,7.68288971,2294.4,2293.5,2.6358]
[1726450416604,8.71931,2293.8,2293.5,2.6358]
[1726450416937,4.35978,2293.7,2293.5,2.6358]
[1726450417140,4.35961,2293.8,2293.5,2.6358]
[1726450417904,4.35981,2293.7,2293.5,2.6358]
[1726450418122,4.35961,2293.8,2293.5,2.6358]
[1726450418466,11.96549478,2294.4,2293.8,4.35953]
[1726450418770,11.96549478,2294.4,2293.9,2.7681]
[1726450418771,4.35873,2294.3,2293.9,2.7681]
[1726450418973,0.0139738,2295.0,2294.0,4.35907]
[1726450418974,4.35817,2294.6,2294.0,4.35907]
[1726450419170,4.35817,2294.6,2294.1,2.7681]
[1726450419737,8.71637,2294.6,2294.1,2.7681]
[1726450419959,4.35826,2294.5,2294.1,2.7681]
[1726450420264,4.35826,2294.5,2294.1,3.48155272]
[1726450420631,4.35826,2294.5,2294.1,2.7681]
[1726450421160,4.35817,2294.6,2294.1,2.7681]
[1726450421563,0.45581322,2294.7,2294.1,2.7681]
[1726450421800,15.88000615,2295.0,2294.5,2.7189]
[1726450421940,8.7288538,2295.0,2294.5,2.7189]
[1726450422266,4.35782,2294.8,2294.5,2.7189]
[1726450422470,4.35805,2294.6,2294.5,2.7189]
[1726450422762,4.35782,2294.8,2294.5,2.7189]
[1726450423330,0.55,2294.7,2294.5,2.7189]
[1726450423544,4.90803,2294.7,2294.5,2.7189]
[1726450425907,4.35805,2294.6,2294.5,2.7189]
[1726450426065,4.90789,2294.7,2294.5,2.7189]
[1726450426270,4.35805,2294.6,2294.5,2.7189]
[1726450426804,4.35849,2294.4,2294.0,2.6601]
[1726450427103,0.55,2294.3,2294.0,2.6601]
[1726450427308,4.359,2294.1,2294.0,2.6601]
[1726450427524,4.90919,2294.0,2293.9,0.0073572]
[1726450428321,9.26838,2294.0,2293.9,0.0073572]
[1726450428486,4.90919,2294.0,2293.9,0.0073572]
[1726450430071,9.26838,2294.0,2293.9,0.0073572]
[1726450430270,10.244308,2294.0,2293.9,0.0073572]
[1726450430719,10.29709314,2294.0,2293.9,0.0073572]
[1726450431715,5.93790314,2294.0,2293.9,0.0073572]
[1726450431891,0.05278514,2294.0,2293.9,0.0073572]
[1726450432816,4.41197514,2294.0,2293.9,0.0073572]
[1726450433200,0.05278514,2294.0,2293.9,0.0073572]
[1726450433401,0.05278514,2294.0,2293.9,2.6869572]
[1726450433629,4.35884,2294.2,2293.9,2.6869572]
[1726450434149,0.05188953,2294.1,2293.9,3.39161192]
[1726450434294,11.50913235,2294.7,2294.1,2.5474]
[1726450435585,4.35844,2294.4,2294.1,2.5474]
[1726450436527,4.35863,2294.3,2294.1,2.5474]
[1726450436848,4.35826,2294.5,2294.1,2.5474]
[1726450437222,4.35848,2294.4,2294.1,2.5474]
[1726450437648,4.35826,2294.5,2294.1,2.5474]
[1726450437932,7.15115235,2294.7,2294.1,2.5474]
[1726450437933,7.15115235,2294.7,2294.3,2.6142]
[1726450439010,4.35787,2294.7,2294.3,2.6142]
[1726450439208,4.35835,2294.5,2294.3,2.6142]
[1726450439532,4.35835,2294.5,2294.0,2.6598]
[1726450439533,4.35864,2294.3,2294.0,2.6598]
[1726450439735,4.35834,2294.5,2294.0,2.6598]
[1726450439941,4.35844,2294.4,2294.0,2.92651572]
[1726450440679,8.717,2294.4,2294.0,2.6598]
[1726450440881,4.35844,2294.4,2294.0,2.6598]
[1726450441090,4.35818,2294.6,2294.0,2.6598]
[1726450441379,4.35818,2294.6,2294.0,7.72163172]
[1726450442080,0.38379895,2294.8,2294.1,7.0329]
[1726450442081,0.55,2294.7,2294.1,7.0329]
[1726450442294,4.90799,2294.7,2294.3,2.674]
[1726450442448,9.17061475,2295.0,2294.3,2.76116946]
[1726450442647,4.35741,2295.0,2294.5,2.674]
[1726450442843,4.35779,2294.8,2294.5,2.674]
[1726450443643,4.35751,2294.9,2294.5,2.674]
[1726450444350,4.35751,2294.9,2294.5,3.82180755]
[1726450445757,0.05250769,2294.8,2294.5,3.82180755]
[1726450445958,4.35797,2294.7,2294.5,2.674]
[1726450446508,4.35841,2294.5,2294.2,2.6606]
[1726450447020,0.05336348,2294.4,2294.2,2.6606]
[1726450447633,0.05336348,2294.4,2294.3,0.26606]
[1726450447915,4.35762,2294.9,2294.4,2.7806]
[1726450448229,4.35735,2295.0,2294.5,5.098738]
[1726450448520,3.0,2295.3,2294.6,2.7806]
[1726450448691,4.35759,2294.9,2294.6,2.7806]
[1726450448892,4.35767,2294.8,2294.6,2.7806]
[1726450449320,4.35759,2294.9,2294.6,2.7806]
[1726450449618,4.35786,2294.7,2294.3,2.7806]
[1726450450781,4.35749,2294.9,2294.3,2.7806]
[1726450450978,9.92437,2295.3,2294.3,2.7806]
[1726450450979,4.35827,2294.5,2294.3,2.7806]
[1726450452192,4.35799,2294.7,2294.3,2.7806]
[1726450452394,6.92516,2294.9,2294.4,2.5258]
[1726450452395,4.35756,2294.9,2294.4,2.5258]
[1726450452624,4.35756,2294.9,2294.4,6.88421]
[1726450452832,8.71523,2294.9,2294.4,2.5258]
[1726450453013,4.35777,2294.8,2294.4,2.5258]
[1726450454032,4.35791,2294.7,2294.4,2.5258]
[1726450454207,8.71563,2294.8,2294.4,3.214249]
[1726450454406,4.35861,2294.4,2294.1,2.6675]
[1726450454595,5.230295,2294.4,2294.1,2.6675]
[1726450454796,8.7166,2294.5,2294.1,2.6675]
[1726450455233,4.35824,2294.5,2294.1,2.6675]
[1726450456811,0.55,2294.6,2294.1,2.6675]
[1726450457014,4.90815,2294.6,2294.1,3.67091472]
[1726450457538,4.90815,2294.6,2294.1,8.02991472]
[1726450457945,4.35825,2294.5,2294.1,3.67091472]
[1726450458653,8.71709,2294.4,2294.1,2.6675]
[1726450458819,4.35869,2294.3,2294.1,2.6535262]
[1726450459352,4.35848,2294.4,2294.1,2.6535262]
[1726450460008,4.35819,2294.6,2294.1,2.6535262]
[1726450460209,4.35781,2294.8,2294.3,4.3585]
[1726450460411,4.35787,2294.7,2294.3,0.08716377]
[1726450460611,4.35781,2294.8,2294.3,0.44459638]
[1726450460818,0.0515391,2294.6,2294.3,0.44459638]
[1726450461020,4.35781,2294.8,2294.3,4.80316638]
[1726450461224,0.0515391,2294.5,2294.3,4.80316638]
[1726450461422,4.35781,2294.8,2294.4,0.91618764]
[1726450461810,11.50856235,2295.0,2294.4,5.27459764]
[1726450462017,4.90749,2294.9,2294.5,2.5329]